[Event "50th La Roda Open 2024"]
[Site "La Roda"]
[Date "2024.03.29"]
[Round "5.9"]
[White "Cruz Lledo, Pablo"]
[Black "Tudela Corbalan, Carlos"]
[Result "1-0"]
[ECO "E61"]
[WhiteElo "2353"]
[BlackElo "2195"]
[Annotator "RC"]
[PlyCount "83"]
[EventDate "2024.03.27"]
[EventType "swiss"]
[EventCountry "ESP"]
[SourceTitle "playchess.com"]
[Source "ChessBase"]
[SourceQuality "1"]
[TimeControl "5400+30"]

1. d4 {[%emt 0:05:24]} g6 {[%emt 0:00:46]} 2. c4 {[%emt 0:00:24]} Bg7 {[%emt 0:00:23]} 3. Nc3 {[%emt 0:00:28]} d6 {[%emt 0:01:06]} 4. Nf3 {[%emt 0:00:28]} Nf6 {[%emt 0:00:35]} 5. Bg5 {[%emt 0:00:43]} Nbd7 {[%emt 0:00:51]} 6. e3 {[%emt 0:00:08]} O-O {[%emt 0:02:12]} 7. Be2 {[%emt 0:00:49]} c6 {[%emt 0:00:12]} 8. O-O {[%emt 0:00:11]} h6 {[%emt 0:01:28]} 9. Bh4 {[%emt 0:00:16]} Nh7 {[%emt 0:08:46]} 10. Qc2 {[%emt 0:02:45]} f5 {[%emt 0:02:57]} 11. Rfd1 {[%emt 0:02:31]} Qe8 {[%emt 0:02:37]} 12. d5 {[%emt 0:00:14]} g5 {[%emt 0:05:13]} 13. Bg3 {[%emt 0:00:04]} Ne5 {[%emt 0:05:01]} 14. Nxe5 {[%emt 0:08:39]} dxe5 {[%emt 0:00:10]} 15. f4 {[%emt 0:00:11]} e4 {[%emt 0:14:01]} 16. c5 {[%emt 0:14:48]} Bxc3 {[%emt 0:01:31]} 17. Qxc3 {[%emt 0:01:14]} cxd5 {[%emt 0:00:15]} 18. Rxd5 {[%emt 0:00:29]} Nf6 {[%emt 0:00:44]} 19. Re5 {[%emt 0:02:51]} e6 {[%emt 0:01:33]} 20. Rd1 {[%emt 0:03:39]} Kh7 {[%emt 0:04:40]} 21. Rd6 {[%emt 0:05:11]} Qf7 {[%emt 0:05:19]} 22. Bc4 {[%emt 0:16:17]} Ng4 {[%emt 0:01:16]} 23. Bxe6 {[%emt 0:00:55]} Qg7 {[%emt 0:00:34]} 24. fxg5 {[%emt 0:00:40]} hxg5 {[%emt 0:10:37]} 25. Qd4 {[%emt 0:00:30]} Bxe6 {[%emt 0:00:30]} 26. Rexe6 {[%emt 0:00:30]} Qxd4 {[%emt 0:00:30]} 27. exd4 {[%emt 0:00:30]} f4 {[%emt 0:00:30]} 28. Rd7+ {[%emt 0:00:30]} Kh8 {[%emt 0:00:30]} 29. Be1 {[%emt 0:00:30]} f3 {[%emt 0:00:30]} 30. gxf3 {[%emt 0:00:30]} Rxf3 {[%emt 0:00:30]} 31. d5 {[%emt 0:00:30]} Raf8 {[%emt 0:00:30]} 32. Bg3 {[%emt 0:00:30]} e3 {[%emt 0:00:30]} 33. c6 {[%emt 0:00:30]} Rf1+ {[%emt 0:00:30]} 34. Kg2 {[%emt 0:00:30]} Rc1 {[%emt 0:00:30]} 35. cxb7 {[%emt 0:00:30]} Rc2+ {[%emt 0:00:30]} 36. Kh3 {[%emt 0:00:30]} Nf2+ {[%emt 0:00:30]} 37. Bxf2 {[%emt 0:00:30]} exf2 {[%emt 0:00:30]} 38. Rf6 {[%emt 0:00:30]} Re8 {[%emt 0:00:30]} 39. b3 {[%emt 0:00:30]} Rxa2 {[%emt 0:00:30]} 40. Rdf7 {[%emt 0:00:30]} Rb2 {[%emt 0:00:30]} 41. Rf8+ {[%emt 0:00:30]} Kg7 {[%emt 0:00:30]} 42. Rxe8 {[%emt 0:00:30]} 1-0

[Event "50th La Roda Open 2024"]
[Site "La Roda"]
[Date "2024.03.29"]
[Round "5.10"]
[White "Martinez Fernandez, Raul"]
[Black "Martinez Reyes, Pedro Ramon"]
[Result "0-1"]
[ECO "B01"]
[WhiteElo "2217"]
[BlackElo "2332"]
[Annotator "RC"]
[PlyCount "60"]
[EventDate "2024.03.27"]
[EventType "swiss"]
[EventCountry "ESP"]
[SourceTitle "playchess.com"]
[Source "ChessBase"]
[SourceQuality "1"]
[TimeControl "5400+30"]

1. e4 {[%emt 0:00:13]} d5 {[%emt 0:00:38]} 2. exd5 {[%emt 0:00:08]} Qxd5 {[%emt 0:00:05]} 3. Nc3 {[%emt 0:00:07]} Qd6 {[%emt 0:00:05]} 4. d4 {[%emt 0:01:50]} Nf6 {[%emt 0:00:07]} 5. Nf3 {[%emt 0:02:09]} c6 {[%emt 0:00:08]} 6. Ne5 {[%emt 0:03:34]} Nbd7 {[%emt 0:00:34]} 7. Bf4 {[%emt 0:03:15]} Nd5 {[%emt 0:00:04]} 8. Nxd5 {[%emt 0:01:29]} Qxd5 {[%emt 0:00:05]} 9. Qf3 {[%emt 0:01:18]} Nxe5 {[%emt 0:32:37]} 10. Qxd5 {[%emt 0:00:38]} cxd5 {[%emt 0:00:21]} 11. Bxe5 {[%emt 0:04:39]} f6 {[%emt 0:01:50]} 12. Bg3 {[%emt 0:00:21]} Bf5 {[%emt 0:00:08]} 13. Kd2 {[%emt 0:06:33]} Rc8 {[%emt 0:00:26]} 14. Bd3 {[%emt 0:01:03]} Bxd3 {[%emt 0:00:20]} 15. Kxd3 {[%emt 0:00:06]} Kd7 {[%emt 0:00:09]} 16. b3 {[%emt 0:01:58]} e6 {[%emt 0:07:01]} 17. c4 {[%emt 0:03:11]} Ba3 {[%emt 0:02:45]} 18. cxd5 {[%emt 0:10:22]} exd5 {[%emt 0:00:19]} 19. Bf4 {[%emt 0:00:34]} h5 {[%emt 0:16:09]} 20. Bc1 {[%emt 0:08:32]} Bd6 {[%emt 0:00:32]} 21. Bd2 {[%emt 0:00:21]} h4 {[%emt 0:00:13]} 22. h3 {[%emt 0:00:14]} g5 {[%emt 0:04:47]} 23. f3 {[%emt 0:01:47]} Rcg8 {[%emt 0:06:56]} 24. Rhe1 {[%emt 0:00:46]} f5 {[%emt 0:00:30]} 25. Rac1 {[%emt 0:00:30]} Rh7 {[%emt 0:00:30]} 26. Re2 {[%emt 0:00:30]} Rg6 {[%emt 0:00:30]} 27. Be1 {[%emt 0:00:30]} Rg8 {[%emt 0:00:30]} 28. Bd2 {[%emt 0:00:30]} Rgh8 {[%emt 0:00:30]} 29. Be1 {[%emt 0:00:30]} Rf8 {[%emt 0:00:30]} 30. Rec2 {[%emt 0:00:30]} Rb8 {[%emt 0:00:30]} 0-1

[Event "50th La Roda Open 2024"]
[Site "La Roda"]
[Date "2024.03.29"]
[Round "5.10"]
[White "Martinez Fernandez, Raul"]
[Black "Martinez Reyes, Pedro Ramon"]
[Result "*"]
[ECO "B01"]
[WhiteElo "2217"]
[BlackElo "2332"]
[Annotator "RC"]
[PlyCount "47"]
[EventDate "2024.03.27"]
[EventType "swiss"]
[EventCountry "ESP"]
[SourceTitle "playchess.com"]
[Source "ChessBase"]
[SourceQuality "1"]
[TimeControl "5400+30"]

1. e4 {[%emt 0:00:13]} d5 {[%emt 0:00:38]} 2. exd5 {[%emt 0:00:08]} Qxd5 {[%emt 0:00:05]} 3. Nc3 {[%emt 0:00:07]} Qd6 {[%emt 0:00:05]} 4. d4 {[%emt 0:01:50]} Nf6 {[%emt 0:00:07]} 5. Nf3 {[%emt 0:02:09]} c6 {[%emt 0:00:08]} 6. Ne5 {[%emt 0:03:34]} Nbd7 {[%emt 0:00:34]} 7. Bf4 {[%emt 0:03:15]} Nd5 {[%emt 0:00:04]} 8. Nxd5 {[%emt 0:01:29]} Qxd5 {[%emt 0:00:05]} 9. Qf3 {[%emt 0:01:18]} Nxe5 {[%emt 0:32:37]} 10. Qxd5 {[%emt 0:00:38]} cxd5 {[%emt 0:00:21]} 11. Bxe5 {[%emt 0:04:39]} f6 {[%emt 0:01:50]} 12. Bg3 {[%emt 0:00:21]} Bf5 {[%emt 0:00:08]} 13. Kd2 {[%emt 0:06:33]} Rc8 {[%emt 0:00:26]} 14. Bd3 {[%emt 0:01:03]} Bxd3 {[%emt 0:00:20]} 15. Kxd3 {[%emt 0:00:06]} Kd7 {[%emt 0:00:09]} 16. b3 {[%emt 0:01:58]} e6 {[%emt 0:07:01]} 17. c4 {[%emt 0:03:11]} Ba3 {[%emt 0:02:45]} 18. cxd5 {[%emt 0:10:22]} exd5 {[%emt 0:00:19]} 19. Bf4 {[%emt 0:00:34]} h5 {[%emt 0:16:09]} 20. Bc1 {[%emt 0:08:32]} Bd6 {[%emt 0:00:32]} 21. Bd2 {[%emt 0:00:21]} h4 {[%emt 0:00:13]} 22. h3 {[%emt 0:00:14]} g5 {[%emt 0:04:47]} 23. f3 {[%emt 0:01:47]} Rcg8 {[%emt 0:06:56]} 24. Rae1 {[%emt 0:00:46]} *

[Event "50th La Roda Open 2024"]
[Site "La Roda"]
[Date "2024.03.29"]
[Round "5.11"]
[White "Buendia Pinar, Alvaro"]
[Black "Romero Berruezo, Francisco"]
[Result "1-0"]
[ECO "E62"]
[WhiteElo "2331"]
[BlackElo "2194"]
[Annotator "RC"]
[PlyCount "46"]
[EventDate "2024.03.27"]
[EventType "swiss"]
[EventCountry "ESP"]
[SourceTitle "playchess.com"]
[Source "ChessBase"]
[SourceQuality "1"]
[TimeControl "5400+30"]

1. d4 {[%emt 0:00:33]} Nf6 {[%emt 0:00:50]} 2. c4 {[%emt 0:00:35]} d6 {[%emt 0:00:30]} 3. Nf3 {[%emt 0:00:41]} g6 {[%emt 0:00:18]} 4. g3 {[%emt 0:00:31]} Bg7 {[%emt 0:00:18]} 5. Bg2 {[%emt 0:00:41]} O-O {[%emt 0:00:37]} 6. O-O {[%emt 0:00:40]} Nc6 {[%emt 0:03:35]} 7. Nc3 {[%emt 0:00:26]} e5 {[%emt 0:00:23]} 8. h3 {[%emt 0:05:07]} exd4 {[%emt 0:10:07]} 9. Nxd4 {[%emt 0:00:23]} Nxd4 {[%emt 0:01:23]} 10. Qxd4 {[%emt 0:00:05]} Nd7 {[%emt 0:03:24]} 11. Qd2 {[%emt 0:00:26]} a5 {[%emt 0:05:35]} 12. Rd1 {[%emt 0:03:00]} Re8 {[%emt 0:09:02]} 13. Qc2 {[%emt 0:09:58]} Nc5 {[%emt 0:05:19]} 14. Bf4 {[%emt 0:13:46]} Bf5 {[%emt 0:10:59]} 15. e4 {[%emt 0:02:30]} Bd7 {[%emt 0:02:01]} 16. Nd5 {[%emt 0:02:49]} Ne6 {[%emt 0:03:26]} 17. Be3 {[%emt 0:00:55]} c5 {[%emt 0:00:55]} 18. Kh2 {[%emt 0:03:24]} Nd4 {[%emt 0:01:14]} 19. Qd2 {[%emt 0:01:04]} Re5 {[%emt 0:03:29]} 20. Bxd4 {[%emt 0:02:10]} Rxd5 {[%emt 0:01:27]} 21. exd5 {[%emt 0:00:38]} Bxd4 {[%emt 0:00:07]} 22. Re1 {[%emt 0:06:37]} a4 {[%emt 0:00:23]} 23. Rab1 {[%emt 0:03:29]} Qf6 {[%emt 0:00:28]} 1-0

[Event "50th La Roda Open 2024"]
[Site "La Roda"]
[Date "2024.03.29"]
[Round "5.12"]
[White "Newrkla, Katharina"]
[Black "Liu, Zexu"]
[Result "0-1"]
[ECO "C60"]
[WhiteElo "2213"]
[BlackElo "2325"]
[Annotator "RC"]
[PlyCount "92"]
[EventDate "2024.03.27"]
[EventType "swiss"]
[EventCountry "ESP"]
[SourceTitle "playchess.com"]
[Source "ChessBase"]
[SourceQuality "1"]
[TimeControl "5400+30"]

1. e4 {[%emt 0:00:03]} e5 {[%emt 0:00:03]} 2. Nf3 {[%emt 0:00:04]} Nc6 {[%emt 0:00:03]} 3. Bb5 {[%emt 0:00:05]} Nge7 {[%emt 0:00:04]} 4. Nc3 {[%emt 0:01:49]} Ng6 {[%emt 0:00:06]} 5. d4 {[%emt 0:10:23]} exd4 {[%emt 0:00:05]} 6. Nxd4 {[%emt 0:00:14]} Bc5 {[%emt 0:00:09]} 7. Be3 {[%emt 0:07:34]} Nxd4 {[%emt 0:00:22]} 8. Bxd4 {[%emt 0:00:09]} Bxd4 {[%emt 0:00:03]} 9. Qxd4 {[%emt 0:00:05]} O-O {[%emt 0:03:34]} 10. O-O-O {[%emt 0:02:46]} d6 {[%emt 0:03:03]} 11. Kb1 {[%emt 0:03:46]} f5 {[%emt 0:00:48]} 12. exf5 {[%emt 0:10:30]} Bxf5 {[%emt 0:00:35]} 13. g3 {[%emt 0:03:15]} c6 {[%emt 0:10:18]} 14. Be2 {[%emt 0:03:02]} d5 {[%emt 0:00:55]} 15. Rhe1 {[%emt 0:06:42]} Qb6 {[%emt 0:05:09]} 16. Qxb6 {[%emt 0:02:04]} axb6 {[%emt 0:00:04]} 17. f4 {[%emt 0:00:18]} Rfe8 {[%emt 0:02:23]} 18. Bf3 {[%emt 0:02:00]} Kf8 {[%emt 0:01:39]} 19. a3 {[%emt 0:00:55]} Bd7 {[%emt 0:03:25]} 20. Kc1 {[%emt 0:02:56]} Ne7 {[%emt 0:00:45]} 21. Re5 {[%emt 0:07:53]} Nf5 {[%emt 0:01:34]} 22. Rde1 {[%emt 0:00:39]} Rxe5 {[%emt 0:00:48]} 23. Rxe5 {[%emt 0:00:05]} Nd6 {[%emt 0:00:15]} 24. Re1 {[%emt 0:15:27]} Nc4 {[%emt 0:00:48]} 25. Na2 {[%emt 0:02:58]} h6 {[%emt 0:07:55]} 26. h4 {[%emt 0:01:14]} Nxa3 {[%emt 0:09:39]} 27. bxa3 {[%emt 0:00:30]} Rxa3 {[%emt 0:00:30]} 28. Bxd5 {[%emt 0:00:30]} cxd5 {[%emt 0:00:30]} 29. Nb4 {[%emt 0:00:30]} Rxg3 {[%emt 0:00:30]} 30. Nxd5 {[%emt 0:00:30]} Rh3 {[%emt 0:00:30]} 31. Nxb6 {[%emt 0:00:30]} Be8 {[%emt 0:00:30]} 32. Nc4 {[%emt 0:00:30]} Rxh4 {[%emt 0:00:30]} 33. Nd6 {[%emt 0:00:30]} Bc6 {[%emt 0:00:30]} 34. Rf1 {[%emt 0:00:30]} Rh1 35. Rxh1 {[%emt 0:00:30]} Bxh1 {[%emt 0:01:00]} 36. Kd2 {[%emt 0:04:02]} Ke7 {[%emt 0:01:34]} 37. Nf5+ {[%emt 0:00:28]} Kf6 {[%emt 0:00:29]} 38. Ne3 {[%emt 0:02:15]} h5 {[%emt 0:00:35]} 39. Ke2 {[%emt 0:00:09]} h4 {[%emt 0:02:25]} 40. Kf2 {[%emt 0:00:04]} Be4 {[%emt 0:00:37]} 41. c3 {[%emt 0:01:00]} g5 {[%emt 0:00:53]} 42. fxg5+ {[%emt 0:00:45]} Kxg5 {[%emt 0:00:05]} 43. Nf1 {[%emt 0:01:48]} Kf4 {[%emt 0:00:07]} 44. Nh2 {[%emt 0:00:50]} b5 {[%emt 0:02:35]} 45. Nf1 {[%emt 0:00:10]} h3 {[%emt 0:00:24]} 46. Kg1 {[%emt 0:02:27]} Bg2 {[%emt 0:00:14]} 0-1

[Event "50th La Roda Open 2024"]
[Site "La Roda"]
[Date "2024.03.29"]
[Round "5.13"]
[White "Gomez Falagan, Daniel"]
[Black "Bustos Bernardo, Samuel"]
[Result "0-1"]
[ECO "E53"]
[WhiteElo "2319"]
[BlackElo "2188"]
[Annotator "RC"]
[PlyCount "52"]
[EventDate "2024.03.27"]
[EventType "swiss"]
[EventCountry "ESP"]
[SourceTitle "playchess.com"]
[Source "ChessBase"]
[SourceQuality "1"]
[TimeControl "5400+30"]

1. d4 {[%emt 0:00:02]} Nf6 {[%emt 0:00:10]} 2. c4 {[%emt 0:00:03]} e6 {[%emt 0:00:08]} 3. Nc3 {[%emt 0:00:03]} Bb4 {[%emt 0:00:08]} 4. e3 {[%emt 0:00:04]} O-O {[%emt 0:00:11]} 5. Bd3 {[%emt 0:00:03]} d5 {[%emt 0:00:10]} 6. a3 {[%emt 0:00:03]} Bxc3+ {[%emt 0:01:49]} 7. bxc3 {[%emt 0:00:08]} dxc4 {[%emt 0:00:21]} 8. Bxc4 {[%emt 0:00:04]} c5 {[%emt 0:00:22]} 9. Nf3 {[%emt 0:00:06]} Qc7 {[%emt 0:01:50]} 10. Be2 {[%emt 0:00:19]} b6 {[%emt 0:02:23]} 11. Bb2 {[%emt 0:00:06]} Bb7 {[%emt 0:03:54]} 12. O-O {[%emt 0:00:07]} Nbd7 {[%emt 0:01:36]} 13. Re1 {[%emt 0:00:40]} Rfd8 {[%emt 0:00:50]} 14. Bf1 {[%emt 0:00:16]} Ne4 {[%emt 0:03:47]} 15. c4 {[%emt 0:06:31]} Ndf6 {[%emt 0:01:37]} 16. Ne5 {[%emt 0:03:33]} Nd7 {[%emt 0:03:40]} 17. Nxd7 {[%emt 0:06:14]} Rxd7 {[%emt 0:02:19]} 18. Qg4 {[%emt 0:00:35]} Rf8 {[%emt 0:11:06]} 19. Bd3 {[%emt 0:06:06]} f5 {[%emt 0:02:37]} 20. Qe2 {[%emt 0:00:32]} Rf6 {[%emt 0:03:05]} 21. d5 {[%emt 0:19:15]} Rh6 {[%emt 0:02:25]} 22. h3 {[%emt 0:00:07]} exd5 {[%emt 0:00:55]} 23. Qf3 {[%emt 0:06:37]} Nd2 {[%emt 0:05:31]} 24. Qxf5 {[%emt 0:01:04]} dxc4 {[%emt 0:00:18]} 25. Bc2 {[%emt 0:00:37]} Rg6 {[%emt 0:05:42]} 26. g3 {[%emt 0:07:17]} Rxg3+ {[%emt 0:00:41]} 0-1

[Event "50th La Roda Open 2024"]
[Site "La Roda"]
[Date "2024.03.29"]
[Round "5.14"]
[White "Arroyo Rodriguez, Jesus"]
[Black "Ramiro Ovejero, Juan Luis"]
[Result "1/2-1/2"]
[ECO "C47"]
[WhiteElo "2027"]
[BlackElo "2316"]
[Annotator "RC"]
[PlyCount "124"]
[EventDate "2024.03.27"]
[EventType "swiss"]
[EventCountry "ESP"]
[SourceTitle "playchess.com"]
[Source "ChessBase"]
[SourceQuality "1"]
[TimeControl "5400+30"]

1. e4 {[%emt 0:00:09]} e5 {[%emt 0:00:22]} 2. Nf3 {[%emt 0:00:48]} Nc6 {[%emt 0:00:06]} 3. Nc3 {[%emt 0:00:20]} Nf6 {[%emt 0:00:06]} 4. d4 {[%emt 0:00:04]} exd4 {[%emt 0:00:06]} 5. Nxd4 {[%emt 0:00:03]} Bb4 {[%emt 0:00:12]} 6. Nxc6 {[%emt 0:00:07]} bxc6 {[%emt 0:00:03]} 7. Bd3 {[%emt 0:00:11]} O-O {[%emt 0:00:09]} 8. O-O {[%emt 0:00:10]} d5 {[%emt 0:00:05]} 9. exd5 {[%emt 0:00:12]} cxd5 {[%emt 0:00:04]} 10. h3 {[%emt 0:00:28]} h6 {[%emt 0:00:53]} 11. Qf3 {[%emt 0:01:18]} Be6 {[%emt 0:09:15]} 12. Bf4 {[%emt 0:00:43]} Bd6 {[%emt 0:02:13]} 13. Rad1 {[%emt 0:01:16]} Bxf4 {[%emt 0:01:12]} 14. Qxf4 {[%emt 0:00:02]} c5 {[%emt 0:05:30]} 15. Rfe1 {[%emt 0:04:29]} Qb8 {[%emt 0:01:53]} 16. Qxb8 {[%emt 0:00:47]} Raxb8 {[%emt 0:00:08]} 17. b3 {[%emt 0:00:52]} Rfd8 {[%emt 0:06:54]} 18. Rd2 {[%emt 0:05:52]} c4 {[%emt 0:09:03]} 19. Bf1 {[%emt 0:00:22]} d4 {[%emt 0:07:18]} 20. Red1 {[%emt 0:01:59]} Rdc8 {[%emt 0:01:49]} 21. Ne2 {[%emt 0:11:34]} d3 {[%emt 0:01:17]} 22. cxd3 {[%emt 0:00:19]} cxb3 {[%emt 0:02:33]} 23. axb3 {[%emt 0:00:01]} Bxb3 {[%emt 0:00:57]} 24. Ra1 {[%emt 1:10:24]} Rc7 {[%emt 0:14:35]} 25. g3 {[%emt 0:00:00]} Bd5 {[%emt 0:02:25]} 26. Bg2 {[%emt 0:00:00]} Rcb7 {[%emt 0:02:21]} 27. Nc3 {[%emt 0:00:00]} Bxg2 {[%emt 0:00:21]} 28. Kxg2 {[%emt 0:00:00]} Rd8 {[%emt 0:01:06]} 29. Ra3 {[%emt 0:00:00]} Rd4 {[%emt 0:01:40]} 30. Ne2 {[%emt 0:00:00]} Rdd7 {[%emt 0:00:10]} 31. Rda2 {[%emt 0:03:30]} g5 32. Ra4 {[%emt 0:00:00]} Nd5 {[%emt 0:05:38]} 33. d4 {[%emt 0:00:00]} Kg7 {[%emt 0:01:47]} 34. Rc4 {[%emt 0:00:00]} Nb4 {[%emt 0:03:10]} 35. Ra3 {[%emt 0:00:00]} Re7 {[%emt 0:01:20]} 36. Re3 {[%emt 0:00:00]} Rxe3 {[%emt 0:01:16]} 37. fxe3 {[%emt 0:00:00]} Nd5 {[%emt 0:00:07]} 38. Kf2 {[%emt 0:00:00]} Re7 {[%emt 0:00:11]} 39. e4 {[%emt 0:00:00]} Rxe4 {[%emt 0:00:49]} 40. Rc5 {[%emt 0:00:00]} Nb4 {[%emt 0:01:43]} 41. Rc7 {[%emt 0:00:00]} a6 {[%emt 0:00:23]} 42. Rb7 {[%emt 0:00:00]} Nc2 {[%emt 0:04:22]} 43. d5 {[%emt 0:00:00]} a5 {[%emt 0:13:20]} 44. g4 {[%emt 0:00:00]} Rb4 {[%emt 0:00:56]} 45. Ra7 {[%emt 0:00:00]} a4 {[%emt 0:00:22]} 46. Ng3 {[%emt 0:00:00]} Kf6 {[%emt 0:00:30]} 47. d6 {[%emt 0:00:00]} Rd4 {[%emt 0:01:10]} 48. Ke2 {[%emt 0:00:01]} a3 {[%emt 0:00:45]} 49. Nf5 {[%emt 0:03:39]} Rd5 {[%emt 0:00:06]} 50. Nxh6 {[%emt 0:03:06]} Rxd6 {[%emt 0:00:51]} 51. Nxf7 {[%emt 0:00:42]} Re6+ {[%emt 0:00:36]} 52. Kd2 {[%emt 0:00:44]} Re7 {[%emt 0:00:43]} 53. Ra6+ {[%emt 0:01:26]} Kxf7 {[%emt 0:00:09]} 54. Kxc2 {[%emt 0:00:10]} Re3 {[%emt 0:00:35]} 55. Ra5 {[%emt 0:00:26]} Kf6 {[%emt 0:00:17]} 56. Ra6+ {[%emt 0:01:12]} Ke5 {[%emt 0:01:14]} 57. Ra5+ {[%emt 0:00:05]} Kd4 {[%emt 0:00:09]} 58. Rxg5 {[%emt 0:00:46]} Kc4 {[%emt 0:00:06]} 59. Rg8 {[%emt 0:00:28]} Rxh3 {[%emt 0:01:36]} 60. Rc8+ {[%emt 0:00:15]} Kb4 {[%emt 0:00:06]} 61. Rb8+ {[%emt 0:00:04]} Kc4 {[%emt 0:00:02]} 62. Rc8+ {[%emt 0:00:06]} Kd5 {[%emt 0:00:06]} 1/2-1/2

[Event "50th La Roda Open 2024"]
[Site "La Roda"]
[Date "2024.03.29"]
[Round "5.15"]
[White "Alfaya Marcelo, Roberto"]
[Black "Hurtado, Felipe"]
[Result "1/2-1/2"]
[ECO "A11"]
[WhiteElo "2311"]
[BlackElo "2087"]
[Annotator "RC"]
[PlyCount "45"]
[EventDate "2024.03.27"]
[EventType "swiss"]
[EventCountry "ESP"]
[SourceTitle "playchess.com"]
[Source "ChessBase"]
[SourceQuality "1"]
[TimeControl "5400+30"]

1. Nf3 {[%emt 0:00:03]} Nf6 {[%emt 0:02:09]} 2. e3 {[%emt 0:00:09]} d5 {[%emt 0:03:03]} 3. c4 {[%emt 0:00:06]} c6 {[%emt 0:00:05]} 4. Nc3 {[%emt 0:00:09]} Bg4 {[%emt 0:03:14]} 5. Qb3 {[%emt 0:01:39]} Qb6 {[%emt 0:03:20]} 6. Ne5 {[%emt 0:01:04]} e6 {[%emt 0:07:13]} 7. cxd5 {[%emt 0:04:57]} Qxb3 {[%emt 0:00:36]} 8. axb3 {[%emt 0:00:08]} exd5 {[%emt 0:00:10]} 9. Nxg4 {[%emt 0:00:32]} Nxg4 {[%emt 0:00:09]} 10. d4 {[%emt 0:00:16]} Nd7 {[%emt 0:03:32]} 11. Bd3 {[%emt 0:02:28]} Ngf6 {[%emt 0:06:15]} 12. Bd2 {[%emt 0:01:20]} Bd6 {[%emt 0:01:11]} 13. f3 {[%emt 0:02:36]} O-O {[%emt 0:01:34]} 14. Ne2 {[%emt 0:02:03]} c5 {[%emt 0:05:45]} 15. dxc5 {[%emt 0:05:25]} Bxc5 {[%emt 0:02:00]} 16. Nd4 {[%emt 0:01:33]} Bb6 {[%emt 0:12:16]} 17. Bc3 {[%emt 0:04:31]} Nc5 {[%emt 0:08:13]} 18. Bf5 {[%emt 0:03:27]} Rfe8 {[%emt 0:01:54]} 19. Kd2 {[%emt 0:01:18]} a6 {[%emt 0:04:01]} 20. Rae1 {[%emt 0:02:46]} Rad8 {[%emt 0:03:07]} 21. Bc2 {[%emt 0:04:57]} Ne6 {[%emt 0:04:35]} 22. b4 {[%emt 0:04:07]} Nd7 {[%emt 0:08:53]} 23. b3 {[%emt 0:24:30]} 1/2-1/2